{"text_format":"3","workbook":"xlsx","n_sheets":2,"sheets":["ДАННЫЕ","ДИАГРАММА"],"not_rendered":{"charts":1,"defined_names":3},"read":"whole","date_system":"1900"}

{"sheet":"ДАННЫЕ","index":0,"n_rows":23,"n_cols":8,"rows_kept":23,"merged":[[0,1,0,7],[1,2,1,7]]}
[null,"Рост и вес ребенка "]
[null,"Имя ребенка:","Имя"]
[null,"Возраст","Фунты","Унции","Вес (в фунтах)","Вес\nПроцентиль","Рост (в дюймах)","Рост\nПроцентиль"]
[null,"При рождении",7,null,{"$f":"IF(COUNT(Данные[[#This Row],[Фунты]:[Унции]])>0,Данные[[#This Row],[Фунты]]+(Данные[[#This Row],[Унции]]/16),NA())","v":7},40,19.5,70]
[null,"4 дня",6,8,{"$f":"IF(COUNT(Данные[[#This Row],[Фунты]:[Унции]])>0,Данные[[#This Row],[Фунты]]+(Данные[[#This Row],[Унции]]/16),NA())","v":6.5},41,19.5,70]
[null,"7 дней",6,4.8,{"$f":"IF(COUNT(Данные[[#This Row],[Фунты]:[Унции]])>0,Данные[[#This Row],[Фунты]]+(Данные[[#This Row],[Унции]]/16),NA())","v":6.3},42,20,71]
[null,"11 дней",6,9.6,{"$f":"IF(COUNT(Данные[[#This Row],[Фунты]:[Унции]])>0,Данные[[#This Row],[Фунты]]+(Данные[[#This Row],[Унции]]/16),NA())","v":6.6},43,20,71]
[null,"14 дней",7,null,{"$f":"IF(COUNT(Данные[[#This Row],[Фунты]:[Унции]])>0,Данные[[#This Row],[Фунты]]+(Данные[[#This Row],[Унции]]/16),NA())","v":7},44,20,71]
[null,"18 дней",7,12,{"$f":"IF(COUNT(Данные[[#This Row],[Фунты]:[Унции]])>0,Данные[[#This Row],[Фунты]]+(Данные[[#This Row],[Унции]]/16),NA())","v":7.75},45,21,72]
[null,"21 день",8,8,{"$f":"IF(COUNT(Данные[[#This Row],[Фунты]:[Унции]])>0,Данные[[#This Row],[Фунты]]+(Данные[[#This Row],[Унции]]/16),NA())","v":8.5},46,21,72]
[null,"25 дней",null,null,{"$f":"IF(COUNT(Данные[[#This Row],[Фунты]:[Унции]])>0,Данные[[#This Row],[Фунты]]+(Данные[[#This Row],[Унции]]/16),NA())","v":{"$error":"#N/A"}}]
[null,"28 дней",null,null,{"$f":"IF(COUNT(Данные[[#This Row],[Фунты]:[Унции]])>0,Данные[[#This Row],[Фунты]]+(Данные[[#This Row],[Унции]]/16),NA())","v":{"$error":"#N/A"}}]
[null,"5 недель",null,null,{"$f":"IF(COUNT(Данные[[#This Row],[Фунты]:[Унции]])>0,Данные[[#This Row],[Фунты]]+(Данные[[#This Row],[Унции]]/16),NA())","v":{"$error":"#N/A"}}]
[null,"6 недель",null,null,{"$f":"IF(COUNT(Данные[[#This Row],[Фунты]:[Унции]])>0,Данные[[#This Row],[Фунты]]+(Данные[[#This Row],[Унции]]/16),NA())","v":{"$error":"#N/A"}}]
[null,"7 недель",null,null,{"$f":"IF(COUNT(Данные[[#This Row],[Фунты]:[Унции]])>0,Данные[[#This Row],[Фунты]]+(Данные[[#This Row],[Унции]]/16),NA())","v":{"$error":"#N/A"}}]
[null,"2 месяца",null,null,{"$f":"IF(COUNT(Данные[[#This Row],[Фунты]:[Унции]])>0,Данные[[#This Row],[Фунты]]+(Данные[[#This Row],[Унции]]/16),NA())","v":{"$error":"#N/A"}}]
[null,"3 месяца",null,null,{"$f":"IF(COUNT(Данные[[#This Row],[Фунты]:[Унции]])>0,Данные[[#This Row],[Фунты]]+(Данные[[#This Row],[Унции]]/16),NA())","v":{"$error":"#N/A"}}]
[null,"6 месяцев",null,null,{"$f":"IF(COUNT(Данные[[#This Row],[Фунты]:[Унции]])>0,Данные[[#This Row],[Фунты]]+(Данные[[#This Row],[Унции]]/16),NA())","v":{"$error":"#N/A"}}]
[null,"9 месяцев",null,null,{"$f":"IF(COUNT(Данные[[#This Row],[Фунты]:[Унции]])>0,Данные[[#This Row],[Фунты]]+(Данные[[#This Row],[Унции]]/16),NA())","v":{"$error":"#N/A"}}]
[null,"12 месяцев",null,null,{"$f":"IF(COUNT(Данные[[#This Row],[Фунты]:[Унции]])>0,Данные[[#This Row],[Фунты]]+(Данные[[#This Row],[Унции]]/16),NA())","v":{"$error":"#N/A"}}]
[null,"18 месяцев",null,null,{"$f":"IF(COUNT(Данные[[#This Row],[Фунты]:[Унции]])>0,Данные[[#This Row],[Фунты]]+(Данные[[#This Row],[Унции]]/16),NA())","v":{"$error":"#N/A"}}]
[null,"24 месяца",null,null,{"$f":"IF(COUNT(Данные[[#This Row],[Фунты]:[Унции]])>0,Данные[[#This Row],[Фунты]]+(Данные[[#This Row],[Унции]]/16),NA())","v":{"$error":"#N/A"}}]
[null,"36 месяцев",null,null,{"$f":"IF(COUNT(Данные[[#This Row],[Фунты]:[Унции]])>0,Данные[[#This Row],[Фунты]]+(Данные[[#This Row],[Унции]]/16),NA())","v":{"$error":"#N/A"}}]

{"sheet":"ДИАГРАММА","index":1,"n_rows":1,"n_cols":2,"rows_kept":1,"merged":[[0,1,1,1]]}
[null,"ДИАГРАММА РОСТА И ВЕСА РЕБЕНКА"]